fUST/lending_fUST_20250528
["ID","MTS","AMOUNT","RATE_DAILY","PERIOD"]
[362620920,1748379040704,-430.0,0.00019178,2]
[362620922,1748379040714,-516.88429869,0.00019178,2]
[362620924,1748379040723,-430.0,0.00019178,2]
[362620926,1748379040733,-151.0,0.00019178,2]
[362620928,1748379040742,-430.0,0.00019178,2]
[362620930,1748379040751,-430.0,0.00019178,2]
[362620932,1748379040760,-430.0,0.00019178,2]
[362620934,1748379040769,-743.32,0.00019178,2]
[362620936,1748379040778,-634.79,0.00019178,2]
[362620938,1748379040787,-151.0,0.00019178,2]
[362620940,1748379040797,-151.0,0.00019178,2]
[362620943,1748379040806,-430.0,0.00019178,2]
[362620945,1748379040816,-151.0,0.00019178,2]
[362620947,1748379040826,-151.0,0.00019178,2]
[362620949,1748379040835,-430.0,0.00019178,2]
[362620951,1748379040845,-151.0,0.00019178,2]
[362620953,1748379040854,-430.0,0.00019178,2]
[362620955,1748379040863,-430.0,0.00019178,2]
[362620957,1748379040873,-430.0,0.00019178,2]
[362620959,1748379040882,-430.0,0.00019178,2]
[362620961,1748379040891,-430.0,0.00019178,2]
[362620963,1748379040900,-1128.63,0.00019178,2]
[362620965,1748379040912,-540.02,0.00019178,2]
[362620967,1748379040922,-194.6266197,0.00019178,2]
[362620969,1748379040932,-430.0,0.00019178,2]
[362620971,1748379040942,-430.0,0.00019178,2]
[362620973,1748379040952,-430.0,0.00019178,2]
[362620975,1748379040962,-151.0,0.00019178,2]
[362620977,1748379040974,-151.0,0.00019178,2]
[362620979,1748379040982,-430.0,0.00019178,2]
[362620981,1748379040991,-430.0,0.00019178,2]
[362620983,1748379041002,-1221.29,0.00019178,2]
[362620985,1748379041011,-151.0,0.00019178,2]
[362620987,1748379041020,-430.0,0.00019178,2]
[362620989,1748379041030,-442.44,0.00019178,2]
[362620991,1748379041039,-1511.04,0.00019178,2]
[362620993,1748379041048,-500.962016,0.00019178,2]
[362620995,1748379041060,-151.0,0.00019178,2]
[362620997,1748379041069,-500.962016,0.00019178,2]
[362620999,1748379041078,-151.0,0.00019178,2]
[362621001,1748379041088,-374.36113551,0.00019178,2]
[362621003,1748379041097,-430.0,0.00019178,2]
[362621005,1748379041106,-500.962016,0.00019178,2]
[362621007,1748379041116,-500.962016,0.00019178,2]
[362621009,1748379041125,-430.0,0.00019178,2]
[362621011,1748379041134,-151.0,0.00019178,2]
[362621013,1748379041144,-430.0,0.00019178,2]
[362621015,1748379041154,-266.061066,0.00019178,2]
[362621017,1748379041163,-430.0,0.00019178,2]
[362621019,1748379041172,-151.0,0.00019178,2]
[362621021,1748379041181,-430.0,0.00019178,2]
[362621023,1748379041191,-430.0,0.00019178,2]
[362621025,1748379041199,-430.0,0.00019178,2]
[362621027,1748379041209,-952.66,0.00019178,2]
[362621029,1748379041218,-430.0,0.00019178,2]
[362621030,1748379041227,-430.0,0.00019178,2]
[362621032,1748379041236,-430.0,0.00019178,2]
[362621034,1748379041245,-430.0,0.00019178,2]
[362621036,1748379041254,-430.0,0.00019178,2]
[362621038,1748379041264,-181.456279,0.00019178,2]
[362621040,1748379041275,-3022.74881347,0.00019314,2]
[362621042,1748379041286,-216.48645555,0.00019316,2]
[362621044,1748379041295,-5426.86988645,0.00019415,3]
[362621047,1748379041312,-937.74391475,0.00019415,3]
[362621049,1748379041322,-18455.01147427,0.00019415,2]
[362621051,1748379041331,-151.0,0.00019416,2]
[362621053,1748379041341,-151.0,0.00019416,2]
[362621055,1748379041350,-151.0,0.00019416,2]
[362621057,1748379041359,-151.0,0.00019416,2]
[362621059,1748379041369,-159.175515,0.00019416,2]
[362621061,1748379041378,-159.175515,0.00019416,2]
[362621063,1748379041388,-153.82215,0.00019416,2]
[362621065,1748379041397,-153.82215,0.00019416,2]
[362621067,1748379041406,-151.0,0.00019416,2]
[362621069,1748379041416,-151.0,0.00019416,2]
[362621071,1748379041425,-151.0,0.00019416,2]
[362621073,1748379041434,-500.962016,0.00019416,2]
[362621075,1748379041445,-177.75020231,0.00019416,2]
[362621238,1748379043158,-0.07787785,0.00019065,2]
[362621402,1748379044795,-550.25098489,0.00019065,2]
[362621405,1748379044808,-1035.94037619,0.00019065,2]
[362621407,1748379044818,-323.21181369,0.00019416,2]
[362621409,1748379044827,-160.0,0.00019416,2]
[362621411,1748379044837,-160.0,0.00019416,2]
[362621413,1748379044846,-160.0,0.00019416,2]
[362621415,1748379044857,-423.16111059,0.00019416,2]
[362621417,1748379044867,-212.62946336,0.00019416,2]
[362621419,1748379044876,-160.0,0.00019416,2]
[362621421,1748379044886,-842.5625,0.00019416,2]
[362621422,1748379044897,-160.0,0.00019416,2]
[362621426,1748379044914,-160.0,0.00019416,2]
[362621429,1748379044930,-229.18805157,0.00019416,2]
[362621432,1748379044945,-160.0,0.00019416,2]
[362621434,1748379044955,-20.1811021,0.00019416,2]
[362621555,1748379046680,-430.0,0.00019178,2]
[362621557,1748379046690,-2258.0,0.00019178,2]
[362621559,1748379046702,-430.0,0.00019178,2]
[362621561,1748379046712,-12636.36473119,0.00019416,2]
[362621563,1748379046721,-151.0,0.00019452,2]
[362621564,1748379046731,-151.0,0.00019452,2]
[362621566,1748379046740,-151.0,0.00019452,2]
[362621568,1748379046750,-151.0,0.00019452,2]
[362621570,1748379046760,-211.293112,0.00019452,2]
[362621572,1748379046770,-430.0,0.00019452,2]
[362621573,1748379046780,-151.0,0.00019452,2]
[362621575,1748379046790,-151.0,0.00019452,2]
[362621577,1748379046800,-50.86395817,0.00019452,2]
[362623188,1748380232952,-402.99039591,0.00018309,2]
[362623190,1748380232963,-274.04270355,0.000189,2]
[362623192,1748380232973,-2861.46,0.00018906,2]
[362623195,1748380232983,-925.153681,0.00019062,2]
[362623197,1748380232994,-1543.29779219,0.00019078,2]
[362623199,1748380233004,-207.4,0.00019166,2]
[362623201,1748380233014,-543.0,0.00019175,2]
[362623204,1748380233024,-300.0,0.00019176,2]
[362623207,1748380233035,-300.0,0.00019176,2]
[362623210,1748380233046,-10774.54291745,0.00019177,2]
[362623213,1748380233056,-420.79119159,0.00019177,2]
[362623216,1748380233067,-500.0,0.00019177,2]
[362623219,1748380233077,-500.0,0.00019177,2]
[362623222,1748380233088,-500.0,0.00019177,2]
[362623224,1748380233097,-371.68734395,0.00019177,2]
[362623643,1748380238722,-128.31265605,0.00019177,2]
[362623644,1748380238732,-500.0,0.00019177,2]
[362623645,1748380238743,-500.0,0.00019177,2]
[362623646,1748380238754,-559.19159513,0.00019177,2]
[362623647,1748380238765,-123.75882842,0.00019177,2]
[362623648,1748380238778,-376.24117158,0.00019177,2]
[362623649,1748380238788,-500.0,0.00019177,2]
[362623650,1748380238798,-500.0,0.00019177,2]
[362623651,1748380238808,-500.0,0.00019177,2]
[362623652,1748380238817,-500.0,0.00019177,2]
[362623653,1748380238828,-500.0,0.00019177,2]
[362623654,1748380238838,-500.0,0.00019177,2]
[362623655,1748380238848,-500.0,0.00019177,2]
[362623656,1748380238857,-500.0,0.00019177,2]
[362623657,1748380238867,-500.0,0.00019177,2]
[362623658,1748380238877,-500.0,0.00019177,2]
[362623659,1748380238886,-500.0,0.00019177,2]
[362623660,1748380238898,-441.43411659,0.00019177,2]
[362623661,1748380238908,-500.0,0.00019177,2]
[362623662,1748380238918,-500.0,0.00019177,2]
[362623663,1748380238927,-500.0,0.00019177,2]
[362623664,1748380238938,-430.0,0.00019178,2]
[362623665,1748380238948,-430.0,0.00019178,2]
[362623666,1748380238957,-430.0,0.00019178,2]
[362623667,1748380238968,-430.0,0.00019178,2]
[362623668,1748380238978,-430.0,0.00019178,2]
[362623669,1748380238988,-430.0,0.00019178,2]
[362623670,1748380238997,-430.0,0.00019178,2]
[362623671,1748380239007,-430.0,0.00019178,2]
[362623672,1748380239017,-430.0,0.00019178,2]
[362623673,1748380239028,-430.0,0.00019178,2]
[362623674,1748380239040,-430.0,0.00019178,2]
[362623675,1748380239050,-430.0,0.00019178,2]
[362623676,1748380239060,-430.0,0.00019178,2]
[362623677,1748380239070,-430.0,0.00019178,2]
[362623678,1748380239079,-461.64564527,0.00019178,2]
[362623679,1748380239090,-430.0,0.00019178,2]
[362623680,1748380239100,-430.0,0.00019178,2]
[362623681,1748380239110,-430.0,0.00019178,2]
[362623682,1748380239119,-269.97000075,0.00019178,2]
[362623683,1748380239129,-430.0,0.00019178,2]
[362623684,1748380239138,-430.0,0.00019178,2]
[362623685,1748380239148,-430.0,0.00019178,2]
[362623686,1748380239158,-430.0,0.00019178,2]
[362623687,1748380239168,-430.0,0.00019178,2]
[362623688,1748380239178,-430.0,0.00019178,2]
[362623689,1748380239188,-489.24,0.00019178,2]
[362623690,1748380239198,-430.0,0.00019178,2]
[362623691,1748380239208,-604.56,0.00019178,2]
[362623692,1748380239217,-1081.6,0.00019178,2]
[362623693,1748380239227,-430.0,0.00019178,2]
[362623694,1748380239236,-430.0,0.00019178,2]
[362623695,1748380239246,-431.48189843,0.00019178,2]
[362623696,1748380239255,-170.686852,0.00019178,2]
[362623697,1748380239268,-259.313148,0.00019178,2]
[362623698,1748380239277,-349.16864032,0.00019178,2]
[362623699,1748380239289,-453.67243545,0.00019178,2]
[362623866,1748380240999,-162.0,0.00019176,2]
[362623867,1748380241010,-895.24892423,0.00019178,2]
[362623868,1748380241020,-430.0,0.00019178,2]
[362623869,1748380241030,-1719.24,0.00019178,2]
[362623870,1748380241040,-2254.82,0.00019178,2]
[362623871,1748380241050,-430.0,0.00019178,2]
[362623872,1748380241059,-430.0,0.00019178,2]
[362623873,1748380241069,-594.93,0.00019178,2]
[362623875,1748380241079,-430.0,0.00019178,2]
[362623877,1748380241090,-430.0,0.00019178,2]
[362623879,1748380241100,-430.0,0.00019178,2]
[362623881,1748380241110,-430.0,0.00019178,2]
[362623884,1748380241120,-430.0,0.00019178,2]
[362623886,1748380241130,-450.76,0.00019178,2]
[362623888,1748380241139,-1234.96,0.00019178,2]
[362623890,1748380241149,-589.76,0.00019178,2]
[362623892,1748380241159,-3137.36,0.00019178,2]
[362623894,1748380241169,-430.0,0.00019178,2]
[362623896,1748380241179,-610.53,0.00019178,2]
[362623898,1748380241189,-430.0,0.00019178,2]
[362623900,1748380241199,-281.58255109,0.00019178,2]
[362623902,1748380241209,-430.0,0.00019178,2]
[362623904,1748380241219,-430.0,0.00019178,2]
[362623906,1748380241229,-430.0,0.00019178,2]
[362623908,1748380241239,-430.0,0.00019178,2]
[362623910,1748380241248,-430.0,0.00019178,2]
[362623912,1748380241259,-1076.95,0.00019178,2]
[362623914,1748380241269,-1977.74,0.00019178,2]
[362623916,1748380241279,-430.0,0.00019178,2]
[362623919,1748380241290,-188.72126539,0.00019178,2]
[362623921,1748380241300,-800.9,0.00019178,2]
[362623923,1748380241313,-430.0,0.00019178,2]
[362623925,1748380241323,-430.0,0.00019178,2]
[362623927,1748380241334,-488.74,0.00019178,2]
[362623929,1748380241343,-430.0,0.00019178,2]
[362623948,1748380241518,-430.0,0.00019178,2]
[362623950,1748380241531,-231.21355408,0.00019178,2]
[362623952,1748380241542,-430.0,0.00019178,2]
[362623954,1748380241552,-430.0,0.00019178,2]
[362623956,1748380241562,-430.0,0.00019178,2]
[362623958,1748380241572,-430.0,0.00019178,2]
[362623960,1748380241582,-430.0,0.00019178,2]
[362623962,1748380241591,-430.0,0.00019178,2]
[362623964,1748380241601,-430.0,0.00019178,2]
[362623966,1748380241611,-430.0,0.00019178,2]
[362623968,1748380241621,-523.7,0.00019178,2]
[362623970,1748380241630,-430.0,0.00019178,2]
[362623972,1748380241641,-712.35,0.00019178,2]
[362623974,1748380241650,-430.0,0.00019178,2]
[362623976,1748380241660,-535.44,0.00019178,2]
[362623978,1748380241670,-933.8,0.00019178,2]
[362623980,1748380241680,-430.0,0.00019178,2]
[362623982,1748380241689,-441.93,0.00019178,2]
[362623985,1748380241699,-1210.84,0.00019178,2]
[362623987,1748380241709,-430.0,0.00019178,2]
[362623989,1748380241719,-430.0,0.00019178,2]
[362623991,1748380241729,-430.0,0.00019178,2]
[362623993,1748380241739,-430.0,0.00019178,2]
[362623995,1748380241749,-430.0,0.00019178,2]
[362623997,1748380241759,-430.0,0.00019178,2]
[362623999,1748380241769,-626.26,0.00019178,2]
[362624001,1748380241779,-430.0,0.00019178,2]
[362624003,1748380241789,-430.0,0.00019178,2]
[362624005,1748380241798,-430.0,0.00019178,2]
[362624007,1748380241808,-430.0,0.00019178,2]
[362624009,1748380241818,-430.0,0.00019178,2]
[362624011,1748380241828,-430.0,0.00019178,2]
[362624013,1748380241837,-535.76589772,0.00019178,2]
[362624015,1748380241847,-57.66024481,0.00019178,2]
[362624428,1748380246096,-372.33975519,0.00019178,2]
[362624430,1748380246107,-430.0,0.00019178,2]
[362624432,1748380246117,-430.0,0.00019178,2]
[362624434,1748380246126,-1491.83,0.00019178,2]
[362624436,1748380246136,-224.14659866,0.00019178,2]
[362624438,1748380246146,-945.81,0.00019178,2]
[362624440,1748380246155,-430.0,0.00019178,2]
[362624443,1748380246165,-430.0,0.00019178,2]
[362624446,1748380246175,-181.456279,0.00019178,2]
[362624448,1748380246184,-216.48645555,0.00019352,2]
[362624450,1748380246194,-151.0,0.00019452,2]
[362624452,1748380246203,-151.0,0.00019452,2]
[362624454,1748380246212,-151.0,0.00019452,2]
[362624456,1748380246222,-151.0,0.00019452,2]
[362624458,1748380246231,-176.340074,0.00019452,2]
[362624460,1748380246240,-151.0,0.00019452,2]
[362624462,1748380246250,-151.0,0.00019452,2]
[362624464,1748380246259,-151.0,0.00019452,2]
[362624466,1748380246269,-151.0,0.00019452,2]
[362624468,1748380246279,-177.083587,0.00019452,2]
[362624470,1748380246289,-151.0,0.00019452,2]
[362624472,1748380246298,-151.0,0.00019452,2]
[362624474,1748380246311,-151.0,0.00019452,2]
[362624476,1748380246321,-151.0,0.00019452,2]
[362624478,1748380246330,-251.0,0.00019452,2]
[362624480,1748380246340,-151.0,0.00019452,2]
[362624482,1748380246350,-151.0,0.00019452,2]
[362624484,1748380246360,-151.0,0.00019452,2]
[362624486,1748380246370,-430.0,0.00019452,2]
[362624488,1748380246380,-430.0,0.00019452,2]
[362624490,1748380246390,-430.0,0.00019452,2]
[362624491,1748380246400,-151.0,0.00019452,2]
[362624494,1748380246410,-151.0,0.00019452,2]
[362624495,1748380246419,-430.0,0.00019452,2]
[362624497,1748380246429,-151.0,0.00019452,2]
[362624499,1748380246438,-430.0,0.00019452,2]
[362624502,1748380246448,-151.0,0.00019452,2]
[362624504,1748380246458,-430.0,0.00019452,2]
[362624505,1748380246467,-198.773182,0.00019452,2]
[362624507,1748380246478,-430.0,0.00019452,2]
[362624509,1748380246488,-151.847228,0.00019452,2]
[362624511,1748380246498,-151.0,0.00019452,2]
[362624513,1748380246507,-430.0,0.00019452,2]
[362624515,1748380246517,-430.0,0.00019452,2]
[362624517,1748380246526,-430.0,0.00019452,2]
[362624519,1748380246536,-430.0,0.00019452,2]
[362624521,1748380246545,-430.0,0.00019452,2]
[362624523,1748380246555,-430.0,0.00019452,2]
[362624525,1748380246565,-236.71,0.00019452,2]
[362624527,1748380246575,-184.81,0.00019452,2]
[362624529,1748380246585,-430.0,0.00019452,2]
[362624531,1748380246595,-430.0,0.00019452,2]
[362624533,1748380246605,-430.0,0.00019452,2]
[362624535,1748380246615,-350.673412,0.00019452,2]
[362624537,1748380246624,-350.673412,0.00019452,2]
[362624539,1748380246634,-350.673412,0.00019452,2]
[362624541,1748380246643,-350.673412,0.00019452,2]
[362624543,1748380246653,-151.0,0.00019452,2]
[362624545,1748380246663,-151.0,0.00019452,2]
[362624547,1748380246672,-151.0,0.00019452,2]
[362624549,1748380246682,-151.0,0.00019452,2]
[362624551,1748380246692,-151.83757,0.00019452,2]
[362624553,1748380246701,-430.0,0.00019452,2]
[362624555,1748380246710,-151.0,0.00019452,2]
[362624557,1748380246721,-151.0,0.00019452,2]
[362624559,1748380246730,-430.0,0.00019452,2]
[362624561,1748380246740,-489.24,0.00019452,2]
[362624563,1748380246750,-430.0,0.00019452,2]
[362624565,1748380246760,-151.0,0.00019452,2]
[362624567,1748380246769,-151.0,0.00019452,2]
[362624569,1748380246778,-604.56,0.00019452,2]
[362624571,1748380246788,-151.0,0.00019452,2]
[362624573,1748380246797,-151.0,0.00019452,2]
[362624575,1748380246806,-307.57165783,0.00019452,2]
[362624577,1748380246815,-151.0,0.00019452,2]
[362624579,1748380246825,-151.0,0.00019452,2]
[362624581,1748380246835,-151.0,0.00019452,2]
[362624583,1748380246844,-151.0,0.00019452,2]
[362624585,1748380246853,-151.0,0.00019452,2]
[362624587,1748380246863,-151.0,0.00019452,2]
[362624589,1748380246872,-151.0,0.00019452,2]
[362624591,1748380246881,-151.0,0.00019452,2]
[362624593,1748380246891,-430.0,0.00019452,2]
[362624595,1748380246900,-196.640595,0.00019452,2]
[362624597,1748380246909,-383.22753536,0.00019452,2]
[362624599,1748380246918,-1698.09,0.00019452,2]
[362624601,1748380246928,-430.0,0.00019452,2]
[362624603,1748380246938,-1719.24,0.00019452,2]
[362624605,1748380246947,-151.0,0.00019452,2]
[362624607,1748380246956,-151.0,0.00019452,2]
[362624609,1748380246966,-430.0,0.00019452,2]
[362624611,1748380246975,-430.0,0.00019452,2]
[362624613,1748380246984,-594.93,0.00019452,2]
[362624615,1748380246993,-430.0,0.00019452,2]
[362624617,1748380247002,-430.0,0.00019452,2]
[362624619,1748380247012,-430.0,0.00019452,2]
[362624621,1748380247021,-430.0,0.00019452,2]
[362624623,1748380247030,-430.0,0.00019452,2]
[362624625,1748380247041,-450.76,0.00019452,2]
[362624627,1748380247052,-1234.96,0.00019452,2]
[362624629,1748380247062,-589.76,0.00019452,2]
[362624632,1748380247071,-3137.36,0.00019452,2]
[362624634,1748380247081,-430.0,0.00019452,2]
[362624635,1748380247090,-610.53,0.00019452,2]
[362624637,1748380247100,-430.0,0.00019452,2]
[362624639,1748380247109,-445.64211707,0.00019452,2]
[362624642,1748380247119,-430.0,0.00019452,2]
[362624643,1748380247129,-430.0,0.00019452,2]
[362624646,1748380247138,-430.0,0.00019452,2]
[362624648,1748380247148,-430.0,0.00019452,2]
[362624649,1748380247157,-1076.95,0.00019452,2]
[362624652,1748380247167,-1977.74,0.00019452,2]
[362624653,1748380247176,-430.0,0.00019452,2]
[362624656,1748380247186,-800.9,0.00019452,2]
[362624658,1748380247196,-430.0,0.00019452,2]
[362624660,1748380247205,-430.0,0.00019452,2]
[362624662,1748380247215,-488.74,0.00019452,2]
[362624664,1748380247224,-430.0,0.00019452,2]
[362624666,1748380247234,-430.0,0.00019452,2]
[362624668,1748380247244,-533.08,0.00019452,2]
[362624670,1748380247253,-430.0,0.00019452,2]
[362624672,1748380247263,-430.0,0.00019452,2]
[362624674,1748380247273,-151.0,0.00019452,2]
[362624676,1748380247283,-151.0,0.00019452,2]
[362624677,1748380247292,-151.0,0.00019452,2]
[362624679,1748380247302,-430.0,0.00019452,2]
[362624682,1748380247316,-430.0,0.00019452,2]
[362624684,1748380247326,-430.0,0.00019452,2]
[362624686,1748380247336,-430.0,0.00019452,2]
[362624688,1748380247346,-523.7,0.00019452,2]
[362624690,1748380247358,-430.0,0.00019452,2]
[362624691,1748380247367,-712.35,0.00019452,2]
[362624694,1748380247378,-430.0,0.00019452,2]
[362624695,1748380247389,-535.44,0.00019452,2]
[362624697,1748380247398,-933.8,0.00019452,2]
[362624700,1748380247408,-430.0,0.00019452,2]
[362624701,1748380247418,-441.93,0.00019452,2]
[362624719,1748380247577,-1210.84,0.00019452,2]
[362624721,1748380247587,-430.0,0.00019452,2]
[362624723,1748380247597,-430.0,0.00019452,2]
[362624725,1748380247606,-430.0,0.00019452,2]
[362624727,1748380247616,-430.0,0.00019452,2]
[362624729,1748380247625,-430.0,0.00019452,2]
[362624731,1748380247635,-626.26,0.00019452,2]
[362624733,1748380247644,-430.0,0.00019452,2]
[362624735,1748380247654,-430.0,0.00019452,2]
[362624737,1748380247663,-430.0,0.00019452,2]
[362624738,1748380247672,-430.0,0.00019452,2]
[362624740,1748380247681,-430.0,0.00019452,2]
[362624742,1748380247691,-430.0,0.00019452,2]
[362624744,1748380247700,-430.0,0.00019452,2]
[362624746,1748380247710,-430.0,0.00019452,2]
[362624748,1748380247720,-430.0,0.00019452,2]
[362624750,1748380247729,-1491.83,0.00019452,2]
[362624752,1748380247739,-945.81,0.00019452,2]
[362624754,1748380247749,-430.0,0.00019452,2]
[362624756,1748380247758,-430.0,0.00019452,2]
[362624758,1748380247768,-842.5625,0.00019478,2]
[362624760,1748380247777,-160.0,0.00019478,2]
[362624762,1748380247787,-160.0,0.00019478,2]
[362624764,1748380247796,-423.16111059,0.00019478,2]
[362624766,1748380247806,-12656.54583329,0.00019478,2]
[362624768,1748380247816,-212.62946336,0.00019478,2]
[362624771,1748380247830,-229.18805157,0.00019478,2]
[362624773,1748380247839,-160.0,0.00019478,2]
[362624774,1748380247848,-160.0,0.00019478,2]
[362624777,1748380247859,-160.0,0.00019478,2]
[362624779,1748380247868,-1427.47830236,0.000195,2]
[362624781,1748380247878,-151.0,0.000195,2]
[362624783,1748380247888,-151.0,0.00019606,2]
[362624785,1748380247898,-151.0,0.00019606,2]
[362624787,1748380247908,-5000.0,0.00019606,2]
[362624789,1748380247918,-151.0,0.0001968,2]
[362624791,1748380247928,-151.0,0.0001968,2]
[362624793,1748380247938,-151.0,0.0001968,2]
[362624794,1748380247949,-151.0,0.0001968,2]
[362624796,1748380247959,-151.0,0.0001968,2]
[362624798,1748380247968,-220.26015,0.0001968,2]
[362624799,1748380247978,-151.0,0.0001968,2]
[362624801,1748380247988,-151.0,0.0001968,2]
[362624803,1748380247998,-151.0,0.0001968,2]
[362624805,1748380248007,-151.0,0.0001968,2]
[362624806,1748380248017,-151.0,0.0001968,2]
[362624808,1748380248027,-151.0,0.0001968,2]
[362624810,1748380248037,-151.0,0.0001968,2]
[362624811,1748380248047,-151.0,0.0001968,2]
[362624813,1748380248056,-151.0,0.0001968,2]
[362624815,1748380248066,-151.0,0.0001968,2]
[362624816,1748380248075,-151.0,0.0001968,2]
[362624818,1748380248085,-151.0,0.0001968,2]
[362624820,1748380248095,-151.0,0.0001968,2]
[362624822,1748380248105,-151.0,0.0001968,2]
[362624823,1748380248114,-151.0,0.0001968,2]
[362624825,1748380248123,-151.0,0.0001968,2]
[362624827,1748380248133,-151.0,0.0001968,2]
[362624829,1748380248142,-151.0,0.0001968,2]
[362624830,1748380248151,-151.0,0.0001968,2]
[362624832,1748380248161,-151.0,0.0001968,2]
[362624834,1748380248170,-151.0,0.0001968,2]
[362624835,1748380248180,-151.0,0.0001968,2]
[362624837,1748380248190,-151.0,0.0001968,2]
[362624839,1748380248200,-151.0,0.0001968,2]
[362624840,1748380248210,-151.0,0.0001968,2]
[362624842,1748380248219,-151.0,0.0001968,2]
[362624844,1748380248229,-350.673412,0.0001968,2]
[362624845,1748380248239,-350.673412,0.0001968,2]
[362624847,1748380248249,-151.0,0.0001968,2]
[362624849,1748380248259,-151.0,0.0001968,2]
[362624851,1748380248268,-151.0,0.0001968,2]
[362624852,1748380248279,-151.0,0.0001968,2]
[362624854,1748380248288,-223.436091,0.0001968,2]
[362624856,1748380248297,-151.0,0.0001968,2]
[362624858,1748380248309,-151.0,0.0001968,2]
[362624859,1748380248319,-151.0,0.0001968,2]
[362624861,1748380248329,-151.0,0.0001968,2]
[362624863,1748380248339,-263.263703,0.00019725,2]
[362624865,1748380248348,-151.0,0.00019725,2]
[362624866,1748380248358,-151.0,0.00019725,2]
[362624868,1748380248369,-151.0,0.00019725,2]
[362624870,1748380248379,-151.0,0.00019725,2]
[362624872,1748380248390,-151.0,0.00019725,2]
[362624874,1748380248400,-3182.3069006,0.00019725,3]
[362624876,1748380248410,-10494.34756344,0.00019725,2]
[362624877,1748380248420,-720.0,0.00019726,2]
[362624879,1748380248430,-166.0,0.00019726,2]
[362624881,1748380248440,-720.0,0.00019726,2]
[362624883,1748380248449,-166.0,0.00019726,2]
[362624884,1748380248458,-203.1696913,0.00019726,2]
[362624886,1748380248469,-720.0,0.00019726,2]
[362624887,1748380248479,-166.0,0.00019726,2]
[362624889,1748380248488,-166.0,0.00019726,2]
[362624890,1748380248497,-720.0,0.00019726,2]
[362624892,1748380248507,-166.0,0.00019726,2]
[362624893,1748380248518,-166.0,0.00019726,2]
[362624895,1748380248527,-153.0,0.00019726,2]
[362624897,1748380248537,-720.0,0.00019726,2]
[362624898,1748380248546,-166.0,0.00019726,2]
[362624900,1748380248555,-166.0,0.00019726,2]
[362624902,1748380248565,-153.0,0.00019726,2]
[362624903,1748380248574,-166.0,0.00019726,2]
[362624905,1748380248583,-166.0,0.00019726,2]
[362624906,1748380248592,-153.0,0.00019726,2]
[362624908,1748380248602,-166.0,0.00019726,2]
[362624910,1748380248612,-153.0,0.00019726,2]
[362624911,1748380248621,-166.0,0.00019726,2]
[362624913,1748380248631,-166.0,0.00019726,2]
[362624915,1748380248640,-166.0,0.00019726,2]
[362624917,1748380248650,-166.0,0.00019726,2]
[362624918,1748380248660,-153.0,0.00019726,2]
[362624920,1748380248669,-166.0,0.00019726,2]
[362624922,1748380248679,-172.0,0.00019726,2]
[362624923,1748380248689,-153.0,0.00019726,2]